Workbook

Sheet mitigationPara
A1: ID | B1: mitigationPara
A2: int | B2: float
B4: 实际提供的秒伤% 1.5=1.5%
A5: 1 | B5: 1.5 | C5: =SUM(B$5:B5)*0.01 -> 0.015
A6: 2 | B6: 1.5 | C6: =SUM(B$5:B6)*0.01 -> 0.03
A7: 3 | B7: 1.5 | C7: =SUM(B$5:B7)*0.01 -> 0.045
A8: 4 | B8: 1.5 | C8: =SUM(B$5:B8)*0.01 -> 0.06
A9: 5 | B9: 1.5 | C9: =SUM(B$5:B9)*0.01 -> 0.075
A10: 6 | B10: 1.5 | C10: =SUM(B$5:B10)*0.01 -> 0.09
A11: 7 | B11: 1.5 | C11: =SUM(B$5:B11)*0.01 -> 0.105
A12: 8 | B12: 1.5 | C12: =SUM(B$5:B12)*0.01 -> 0.12
A13: 9 | B13: 1.5 | C13: =SUM(B$5:B13)*0.01 -> 0.135
A14: 10 | B14: 1.5 | C14: =SUM(B$5:B14)*0.01 -> 0.15
A15: 11 | B15: 1.5 | C15: =SUM(B$5:B15)*0.01 -> 0.165
A16: 12 | B16: 1.5 | C16: =SUM(B$5:B16)*0.01 -> 0.18
A17: 13 | B17: 1.5 | C17: =SUM(B$5:B17)*0.01 -> 0.195
A18: 14 | B18: 1.5 | C18: =SUM(B$5:B18)*0.01 -> 0.21
A19: 15 | B19: 1.5 | C19: =SUM(B$5:B19)*0.01 -> 0.225
A20: 16 | B20: 1.5 | C20: =SUM(B$5:B20)*0.01 -> 0.24
A21: 17 | B21: 1.5 | C21: =SUM(B$5:B21)*0.01 -> 0.255
A22: 18 | B22: 1.5 | C22: =SUM(B$5:B22)*0.01 -> 0.27
A23: 19 | B23: 1.5 | C23: =SUM(B$5:B23)*0.01 -> 0.285
A24: 20 | B24: 1.5 | C24: =SUM(B$5:B24)*0.01 -> 0.3
A25: 21 | B25: 1 | C25: =SUM(B$5:B25)*0.01 -> 0.31
A26: 22 | B26: 1 | C26: =SUM(B$5:B26)*0.01 -> 0.32
A27: 23 | B27: 1 | C27: =SUM(B$5:B27)*0.01 -> 0.33
A28: 24 | B28: 1 | C28: =SUM(B$5:B28)*0.01 -> 0.34
A29: 25 | B29: 1 | C29: =SUM(B$5:B29)*0.01 -> 0.35
A30: 26 | B30: 1 | C30: =SUM(B$5:B30)*0.01 -> 0.36
A31: 27 | B31: 1 | C31: =SUM(B$5:B31)*0.01 -> 0.37
A32: 28 | B32: 1 | C32: =SUM(B$5:B32)*0.01 -> 0.38
A33: 29 | B33: 1 | C33: =SUM(B$5:B33)*0.01 -> 0.39
A34: 30 | B34: 1 | C34: =SUM(B$5:B34)*0.01 -> 0.4
A35: 31 | B35: 1 | C35: =SUM(B$5:B35)*0.01 -> 0.41
A36: 32 | B36: 1 | C36: =SUM(B$5:B36)*0.01 -> 0.42
A37: 33 | B37: 1 | C37: =SUM(B$5:B37)*0.01 -> 0.43
A38: 34 | B38: 1 | C38: =SUM(B$5:B38)*0.01 -> 0.44
A39: 35 | B39: 1 | C39: =SUM(B$5:B39)*0.01 -> 0.45
A40: 36 | B40: 1 | C40: =SUM(B$5:B40)*0.01 -> 0.46
A41: 37 | B41: 1 | C41: =SUM(B$5:B41)*0.01 -> 0.47
A42: 38 | B42: 1 | C42: =SUM(B$5:B42)*0.01 -> 0.48
A43: 39 | B43: 1 | C43: =SUM(B$5:B43)*0.01 -> 0.49
A44: 40 | B44: 0.8 | C44: =SUM(B$5:B44)*0.01 -> 0.498
A45: 41 | B45: 0.8 | C45: =SUM(B$5:B45)*0.01 -> 0.506
A46: 42 | B46: 0.8 | C46: =SUM(B$5:B46)*0.01 -> 0.514
A47: 43 | B47: 0.8 | C47: =SUM(B$5:B47)*0.01 -> 0.522
A48: 44 | B48: 0.8 | C48: =SUM(B$5:B48)*0.01 -> 0.53
A49: 45 | B49: 0.8 | C49: =SUM(B$5:B49)*0.01 -> 0.538
A50: 46 | B50: 0.8 | C50: =SUM(B$5:B50)*0.01 -> 0.546
A51: 47 | B51: 0.8 | C51: =SUM(B$5:B51)*0.01 -> 0.554
A52: 48 | B52: 0.8 | C52: =SUM(B$5:B52)*0.01 -> 0.562
A53: 49 | B53: 0.8 | C53: =SUM(B$5:B53)*0.01 -> 0.57
A54: 50 | B54: 0.8 | C54: =SUM(B$5:B54)*0.01 -> 0.578
A55: 51 | B55: 0.6 | C55: =SUM(B$5:B55)*0.01 -> 0.584
A56: 52 | B56: 0.6 | C56: =SUM(B$5:B56)*0.01 -> 0.59
A57: 53 | B57: 0.6 | C57: =SUM(B$5:B57)*0.01 -> 0.596
A58: 54 | B58: 0.6 | C58: =SUM(B$5:B58)*0.01 -> 0.602
A59: 55 | B59: 0.6 | C59: =SUM(B$5:B59)*0.01 -> 0.608
A60: 56 | B60: 0.6 | C60: =SUM(B$5:B60)*0.01 -> 0.614
A61: 57 | B61: 0.6 | C61: =SUM(B$5:B61)*0.01 -> 0.62
A62: 58 | B62: 0.6 | C62: =SUM(B$5:B62)*0.01 -> 0.626
A63: 59 | B63: 0.6 | C63: =SUM(B$5:B63)*0.01 -> 0.632
A64: 60 | B64: 0.6 | C64: =SUM(B$5:B64)*0.01 -> 0.638
A65: 61 | B65: 0.6 | C65: =SUM(B$5:B65)*0.01 -> 0.644
A66: 62 | B66: 0.4 | C66: =SUM(B$5:B66)*0.01 -> 0.648
A67: 63 | B67: 0.4 | C67: =SUM(B$5:B67)*0.01 -> 0.652
A68: 64 | B68: 0.4 | C68: =SUM(B$5:B68)*0.01 -> 0.656
A69: 65 | B69: 0.4 | C69: =SUM(B$5:B69)*0.01 -> 0.66
A70: 66 | B70: 0.4 | C70: =SUM(B$5:B70)*0.01 -> 0.664
A71: 67 | B71: 0.4 | C71: =SUM(B$5:B71)*0.01 -> 0.668
A72: 68 | B72: 0.4 | C72: =SUM(B$5:B72)*0.01 -> 0.672
A73: 69 | B73: 0.4 | C73: =SUM(B$5:B73)*0.01 -> 0.676
A74: 70 | B74: 0.4 | C74: =SUM(B$5:B74)*0.01 -> 0.68
A75: 71 | B75: 0.4 | C75: =SUM(B$5:B75)*0.01 -> 0.684
A76: 72 | B76: 0.4 | C76: =SUM(B$5:B76)*0.01 -> 0.688
A77: 73 | B77: 0.2 | C77: =SUM(B$5:B77)*0.01 -> 0.69
A78: 74 | B78: 0.2 | C78: =SUM(B$5:B78)*0.01 -> 0.692
A79: 75 | B79: 0.2 | C79: =SUM(B$5:B79)*0.01 -> 0.694
A80: 76 | B80: 0.2 | C80: =SUM(B$5:B80)*0.01 -> 0.696
A81: 77 | B81: 0.2 | C81: =SUM(B$5:B81)*0.01 -> 0.698
A82: 78 | B82: 0.2 | C82: =SUM(B$5:B82)*0.01 -> 0.7
A83: 79 | B83: 0.2 | C83: =SUM(B$5:B83)*0.01 -> 0.702
A84: 80 | B84: 0.2 | C84: =SUM(B$5:B84)*0.01 -> 0.704
A85: 81 | B85: 0.2 | C85: =SUM(B$5:B85)*0.01 -> 0.706
A86: 82 | B86: 0.2 | C86: =SUM(B$5:B86)*0.01 -> 0.708
A87: 83 | B87: 0.2 | C87: =SUM(B$5:B87)*0.01 -> 0.71
A88: 84 | B88: 0 | C88: =SUM(B$5:B88)*0.01 -> 0.71
A89: 85 | B89: 0 | C89: =SUM(B$5:B89)*0.01 -> 0.71
A90: 86 | B90: 0 | C90: =SUM(B$5:B90)*0.01 -> 0.71
A91: 87 | B91: 0 | C91: =SUM(B$5:B91)*0.01 -> 0.71
A92: 88 | B92: 0 | C92: =SUM(B$5:B92)*0.01 -> 0.71
A93: 89 | B93: 0 | C93: =SUM(B$5:B93)*0.01 -> 0.71
A94: 90 | B94: 0 | C94: =SUM(B$5:B94)*0.01 -> 0.71
A95: 91 | B95: 0 | C95: =SUM(B$5:B95)*0.01 -> 0.71
A96: 92 | B96: 0 | C96: =SUM(B$5:B96)*0.01 -> 0.71
A97: 93 | B97: 0 | C97: =SUM(B$5:B97)*0.01 -> 0.71
A98: 94 | B98: 0 | C98: =SUM(B$5:B98)*0.01 -> 0.71
A99: 95 | B99: 0 | C99: =SUM(B$5:B99)*0.01 -> 0.71
A100: 96 | B100: 0 | C100: =SUM(B$5:B100)*0.01 -> 0.71
A101: 97 | B101: 0 | C101: =SUM(B$5:B101)*0.01 -> 0.71
A102: 98 | B102: 0 | C102: =SUM(B$5:B102)*0.01 -> 0.71
A103: 99 | B103: 0 | C103: =SUM(B$5:B103)*0.01 -> 0.71
A104: 100 | B104: 0 | C104: =SUM(B$5:B104)*0.01 -> 0.71
